[Event "5th Thessaloniki SKG Open-B 2024"]
[Site "Thessaloniki"]
[Date "2024.08.07"]
[Round "2.1"]
[White "Avanesyan, Aleksandr"]
[Black "Samakas, Anastasios"]
[Result "1-0"]
[ECO "B13"]
[WhiteElo "1700"]
[BlackElo "2000"]
[Annotator "RC"]
[PlyCount "105"]
[EventDate "2024.08.05"]
[EventType "swiss"]
[EventCountry "GRE"]
[SourceTitle "playchess.com"]
[Source "ChessBase"]
[SourceQuality "1"]
[TimeControl "40/5400+30:1800+30"]

1. e4 {[%emt 0:00:03]} c6 {[%emt 0:09:43]} 2. d4 {[%emt 0:00:12]} d5 {[%emt 0:00:06]} 3. exd5 {[%emt 0:00:06]} cxd5 {[%emt 0:00:01]} 4. Bd3 {[%emt 0:00:20]} Nc6 {[%emt 0:00:07]} 5. c3 {[%emt 0:00:06]} g6 {[%emt 0:00:36]} 6. Bf4 {[%emt 0:00:50]} Bg7 {[%emt 0:00:19]} 7. Nf3 {[%emt 0:00:15]} Nf6 {[%emt 0:00:19]} 8. h3 {[%emt 0:00:18]} O-O {[%emt 0:00:14]} 9. O-O {[%emt 0:00:10]} a6 {[%emt 0:00:17]} 10. a4 {[%emt 0:01:08]} Bf5 {[%emt 0:00:37]} 11. Ne5 {[%emt 0:03:05]} Ne4 {[%emt 0:06:04]} 12. Nxc6 {[%emt 0:02:01]} bxc6 {[%emt 0:00:01]} 13. Qc2 {[%emt 0:00:32]} Nd6 {[%emt 0:01:55]} 14. Nd2 {[%emt 0:07:36]} f6 {[%emt 0:16:01]} 15. Rfe1 {[%emt 0:15:30]} e5 {[%emt 0:18:28]} 16. dxe5 {[%emt 0:01:40]} fxe5 {[%emt 0:00:06]} 17. Bxe5 {[%emt 0:00:17]} Bxe5 {[%emt 0:00:27]} 18. Rxe5 {[%emt 0:00:04]} Qg5 {[%emt 0:12:47]} 19. Bxf5 {[%emt 0:03:39]} Nxf5 {[%emt 0:02:44]} 20. Nf3 {[%emt 0:03:22]} Qd8 {[%emt 0:00:53]} 21. Rae1 {[%emt 0:02:55]} Ra7 {[%emt 0:00:07]} 22. Qd2 {[%emt 0:02:38]} Nd6 {[%emt 0:05:07]} 23. Qg5 {[%emt 0:09:45]} Qb6 {[%emt 0:03:33]} 24. Qe3 {[%emt 0:01:17]} Qxe3 {[%emt 0:01:04]} 25. R5xe3 {[%emt 0:00:11]} Rf4 {[%emt 0:00:55]} 26. Re6 {[%emt 0:02:09]} Nc4 {[%emt 0:00:07]} 27. b3 {[%emt 0:00:34]} Nb2 {[%emt 0:01:11]} 28. Rxc6 {[%emt 0:01:26]} Rb7 {[%emt 0:00:33]} 29. Nd4 {[%emt 0:04:44]} Nd3 {[%emt 0:00:04]} 30. Rc8+ {[%emt 0:01:07]} Rf8 {[%emt 0:00:45]} 31. Rxf8+ {[%emt 0:01:36]} Kxf8 {[%emt 0:00:01]} 32. Re3 {[%emt 0:00:22]} Nc5 {[%emt 0:00:11]} 33. Re5 {[%emt 0:00:49]} Nxb3 {[%emt 0:00:04]} 34. Rxd5 {[%emt 0:00:46]} Nd2 {[%emt 0:02:34]} 35. Ne6+ {[%emt 0:03:45]} Ke7 {[%emt 0:00:11]} 36. Rxd2 {[%emt 0:00:03]} Kxe6 {[%emt 0:00:01]} 37. Rd4 {[%emt 0:00:42]} Rb1+ {[%emt 0:04:20]} 38. Kh2 {[%emt 0:00:01]} a5 {[%emt 0:00:34]} 39. f4 {[%emt 0:01:29]} Rb3 {[%emt 0:00:38]} 40. Re4+ {[%emt 0:00:00]} Kf5 {[%emt 0:00:00]} 41. Rc4 {[%emt 0:00:36]} h5 {[%emt 0:01:35]} 42. Kg3 {[%emt 0:00:50]} Ra3 {[%emt 0:00:20]} 43. Rc5+ {[%emt 0:01:34]} Ke4 {[%emt 0:00:10]} 44. Re5+ {[%emt 0:00:05]} Kd3 {[%emt 0:00:07]} 45. Rxa5 {[%emt 0:00:06]} Rxc3 {[%emt 0:00:14]} 46. Kh4 {[%emt 0:00:33]} Ke4 {[%emt 0:00:20]} 47. g3 {[%emt 0:00:32]} Kf3 {[%emt 0:01:15]} 48. Ra6 {[%emt 0:00:25]} g5+ {[%emt 0:00:15]} 49. fxg5 {[%emt 0:00:22]} Rc4+ {[%emt 0:00:16]} 50. Kxh5 {[%emt 0:00:09]} Kxg3 {[%emt 0:00:05]} 51. g6 {[%emt 0:00:27]} Kxh3 {[%emt 0:00:05]} 52. g7 {[%emt 0:00:23]} Rh4+ {[%emt 0:00:20]} 53. Kg6 {[%emt 0:00:08]} 1-0

[Event "5th Thessaloniki SKG Open-B 2024"]
[Site "Thessaloniki"]
[Date "2024.08.07"]
[Round "2.2"]
[White "Rose, Nathan"]
[Black "Pantoglou, Dimitrios"]
[Result "0-1"]
[ECO "C07"]
[WhiteElo "1694"]
[BlackElo "1893"]
[Annotator "NA RC"]
[PlyCount "72"]
[EventDate "2024.08.05"]
[EventType "swiss"]
[EventCountry "GRE"]
[SourceTitle "playchess.com"]
[Source "ChessBase"]
[SourceQuality "1"]
[TimeControl "40/5400+30:1800+30"]

1. e4 {[%emt 0:00:01]} e6 {[%emt 0:04:47]} 2. d4 {[%emt 0:00:09]} d5 {[%emt 0:00:07]} 3. Nd2 {[%emt 0:00:11]} c5 {[%emt 0:00:18]} 4. exd5 {[%emt 0:00:31]} Qxd5 {[%emt 0:00:15]} 5. Ngf3 {[%emt 0:01:30]} cxd4 {[%emt 0:00:12]} 6. Bc4 {[%emt 0:00:34]} Qd6 {[%emt 0:00:10]} 7. O-O {[%emt 0:00:38]} Nf6 {[%emt 0:00:08]} 8. Nb3 {[%emt 0:00:56]} Nc6 {[%emt 0:00:16]} 9. Nfxd4 {[%emt 0:02:04]} Nxd4 {[%emt 0:00:14]} 10. Nxd4 {[%emt 0:00:21]} a6 {[%emt 0:00:07]} 11. a4 {[%emt 0:07:09]} Be7 {[%emt 0:02:34]} 12. c3 {[%emt 0:00:33]} O-O {[%emt 0:00:13]} 13. Qf3 {[%emt 0:00:50]} Qc7 {[%emt 0:04:14]} 14. Bd3 {[%emt 0:03:25] C07: French Tarrasch: 3...c5, 4 Ngf3 and 4 exd5 Qxd5.} Bd7 {[%emt 0:08:11]} 15. Re1 {[%emt 0:02:30]} Rad8 {[%emt 0:04:30]} 16. Bf4 {[%emt 0:08:06]} Bd6 {[%emt 0:03:48]} 17. Bxd6 {[%emt 0:00:08]} Qxd6 {[%emt 0:00:12]} 18. Qxb7 {[%emt 0:06:23]} e5 {[%emt 0:00:12]} 19. Nf3 {[%emt 0:15:26]} (19. Qxa6 $17 {was worth a try.} Qxa6 20. Bxa6 exd4 21. a5) 19... Qxd3 {[%emt 0:00:48]} 20. Rad1 {[%emt 0:00:28]} (20. Nxe5 {is a better defense.} Qd2 21. Nxd7 Rxd7 22. Qxa6 Qxb2 23. Qa5) 20... Bc6 {[%emt 0:05:30]} 21. Rxd3 {[%emt 0:06:41]} Bxb7 {[%emt 0:00:20]} 22. Rxd8 {[%emt 0:00:10]} Rxd8 {[%emt 0:00:12]} 23. Nxe5 {[%emt 0:00:12]} Re8 {[%emt 0:04:10]} 24. f4 {[%emt 0:43:34]} Nd5 {[%emt 0:06:35]} 25. g3 {[%emt 0:00:00]} f6 {[%emt 0:01:44]} 26. Nd3 {[%emt 0:00:00]} Rxe1+ {[%emt 0:00:12]} 27. Nxe1 {[%emt 0:00:00]} Ne3 {[%emt 0:01:58]} 28. Nd3 {[%emt 0:00:00]} Kf7 {[%emt 0:03:34]} 29. Kf2 {[%emt 0:00:00]} Nc4 {[%emt 0:01:03]} 30. b3 {[%emt 0:00:00]} Na5 {[%emt 0:03:53]} 31. Nc5 {[%emt 0:00:00]} Ke7 {[%emt 0:00:48]} 32. b4 {[%emt 0:00:00]} Kd6 {[%emt 0:07:53]} 33. Ke3 {[%emt 0:00:00] [#]} Kd5 $1 {[%emt 0:03:13]} 34. Kd3 {[%emt 0:00:00]} Bc8 {[%emt 0:01:05]} 35. h4 {[%emt 0:00:00]} (35. g4 {was called for.}) 35... Nc4 {[%emt 0:00:37]} 36. a5 {[%emt 0:00:00] [#]} (36. Kc2 {might work better.}) 36... Nxa5 $19 {[%emt 0:34:27]} 0-1

[Event "5th Thessaloniki SKG Open-B 2024"]
[Site "Thessaloniki"]
[Date "2024.08.07"]
[Round "2.3"]
[White "Vakalopoulos, Hristos"]
[Black "Gunes, Eylul"]
[Result "1/2-1/2"]
[ECO "D36"]
[WhiteElo "1866"]
[BlackElo "1695"]
[Annotator "NA RC"]
[PlyCount "75"]
[EventDate "2024.08.05"]
[EventType "swiss"]
[EventCountry "GRE"]
[SourceTitle "playchess.com"]
[Source "ChessBase"]
[SourceQuality "1"]
[TimeControl "40/5400+30:1800+30"]

1. c4 {[%emt 0:00:03]} e6 {[%emt 0:00:14]} 2. Nc3 {[%emt 0:00:15]} d5 {[%emt 0:00:11]} 3. cxd5 {[%emt 0:00:17]} exd5 {[%emt 0:00:07]} 4. d4 {[%emt 0:00:04]} Nf6 {[%emt 0:00:09]} 5. Bg5 {[%emt 0:00:31]} Be7 {[%emt 0:00:11]} 6. Qc2 {[%emt 0:02:07]} O-O {[%emt 0:00:35]} 7. e3 {[%emt 0:00:07]} c6 {[%emt 0:00:25]} 8. Bd3 {[%emt 0:00:23]} h6 {[%emt 0:07:13]} 9. Bh4 {[%emt 0:00:17]} Ne8 {[%emt 0:05:32] D36: Queen's Gambit Declined: Exchange Variation: Main line (5 Bg5 c6 6 Qc2).} 10. Bxe7 {[%emt 0:01:38]} Qxe7 {[%emt 0:00:11]} 11. Nxd5 {[%emt 0:03:13]} cxd5 {[%emt 0:00:05]} 12. Qxc8 {[%emt 0:00:05]} Nc6 {[%emt 0:00:24]} 13. Qf5 {[%emt 0:13:09]} Qb4+ {[%emt 0:03:23]} 14. Kf1 {[%emt 0:00:57]} Nf6 {[%emt 0:05:12]} 15. Rb1 {[%emt 0:06:59]} Rfe8 {[%emt 0:18:58]} 16. Nf3 {[%emt 0:06:58]} Ne7 {[%emt 0:12:44]} 17. Qf4 {[%emt 0:08:22]} Rac8 {[%emt 0:21:26]} 18. g4 {[%emt 0:01:42]} Ne4 {[%emt 0:04:43]} 19. a3 {[%emt 0:04:11]} Qb3 {[%emt 0:03:26]} 20. Bxe4 {[%emt 0:01:59]} dxe4 {[%emt 0:00:08]} 21. Ne1 $2 {[%emt 0:18:48]} (21. Qxe4 $11 Ng6 22. Qf5) 21... Nd5 {[%emt 0:01:34]} 22. Qg3 {[%emt 0:01:47]} Nc3 {[%emt 0:01:12]} 23. Rc1 {[%emt 0:01:34]} (23. bxc3 $142 Qxb1 24. Qd6) 23... Qxb2 {[%emt 0:00:13]} (23... Ne2 $142 24. Kxe2 Rxc1) 24. Rc2 {[%emt 0:00:07]} Qxa3 {[%emt 0:01:34]} 25. h4 {[%emt 0:00:18]} Qa6+ {[%emt 0:00:33]} 26. Kg2 {[%emt 0:01:03]} Qe6 {[%emt 0:09:23]} 27. Rb2 {[%emt 0:02:57]} b6 {[%emt 0:00:21]} 28. Nc2 $2 {[%emt 0:01:19]} (28. Kh2) 28... Na4 {[%emt 0:00:58]} (28... Ne2 $142 29. Qh3 Rc3) 29. Rb4 {[%emt 0:01:25]} Rxc2 {[%emt 0:01:16]} 30. Rxa4 {[%emt 0:00:07]} Ra2 {[%emt 0:00:22]} 31. Ra1 $2 {[%emt 0:03:24]} (31. Rxa2 $17 Qxa2 32. Rc1) 31... Rxa4 {[%emt 0:01:11]} 32. Rxa4 {[%emt 0:00:06]} Qd7 {[%emt 0:00:40]} (32... a5 $19 33. g5 Kh7) 33. Rc4 {[%emt 0:01:01]} Rc8 {[%emt 0:00:15]} 34. Rxc8+ $15 {[%emt 0:00:41]} Qxc8 {[%emt 0:00:01]} 35. Qf4 $2 {[%emt 0:00:25]} (35. d5 $11) 35... Qb7 $2 {[%emt 0:00:35]} (35... a5 $19 36. Qxe4 a4) 36. Qe5 {[%emt 0:03:41]} b5 {[%emt 0:00:33]} 37. d5 {[%emt 0:04:27]} Qd7 {[%emt 0:01:23]} 38. Kg3 {[%emt 0:13:03]} 1/2-1/2

[Event "5th Thessaloniki SKG Open-B 2024"]
[Site "Thessaloniki"]
[Date "2024.08.07"]
[Round "2.4"]
[White "Naci, Igli"]
[Black "Gkogkolas, Georgios"]
[Result "1/2-1/2"]
[ECO "B22"]
[WhiteElo "1800"]
[BlackElo "1690"]
[Annotator "NA RC"]
[PlyCount "71"]
[EventDate "2024.08.05"]
[EventType "swiss"]
[EventCountry "GRE"]
[SourceTitle "playchess.com"]
[Source "ChessBase"]
[SourceQuality "1"]
[TimeControl "40/5400+30:1800+30"]

1. e4 {[%emt 0:00:13]} c5 {[%emt 0:00:15]} 2. Nf3 {[%emt 0:00:12]} e6 {[%emt 0:00:04]} 3. c3 {[%emt 0:01:58]} Nf6 {[%emt 0:00:19]} 4. e5 {[%emt 0:01:30]} Nd5 {[%emt 0:00:16]} 5. d4 {[%emt 0:00:22]} cxd4 {[%emt 0:00:25]} 6. cxd4 {[%emt 0:03:12]} d6 {[%emt 0:00:32]} 7. Nc3 {[%emt 0:02:40]} Nxc3 {[%emt 0:01:51]} 8. bxc3 {[%emt 0:00:05]} Qc7 {[%emt 0:00:57]} 9. Qb3 {[%emt 0:01:10]} Nd7 {[%emt 0:02:33] B22: Sicilian: 2 c3.} 10. Bf4 {[%emt 0:02:52]} Be7 {[%emt 0:04:49]} 11. Bd3 {[%emt 0:03:03]} dxe5 {[%emt 0:04:03]} 12. Nxe5 {[%emt 0:04:50]} Bd6 {[%emt 0:01:22]} 13. Bb5 {[%emt 0:01:15]} O-O {[%emt 0:10:27]} 14. Bxd7 {[%emt 0:07:15]} Bxe5 {[%emt 0:02:40]} 15. Bxe5 {[%emt 0:00:20]} Qxd7 {[%emt 0:00:10]} 16. O-O {[%emt 0:00:07]} b6 {[%emt 0:00:58]} 17. a4 {[%emt 0:01:05]} Bb7 {[%emt 0:00:52]} 18. f3 {[%emt 0:01:50]} Rac8 {[%emt 0:01:17]} 19. Rfe1 {[%emt 0:03:16]} Bd5 {[%emt 0:02:07]} 20. Qb2 {[%emt 0:04:16]} Rc4 {[%emt 0:03:41]} 21. a5 {[%emt 0:07:59]} Rfc8 {[%emt 0:06:14]} 22. axb6 {[%emt 0:05:06]} axb6 {[%emt 0:00:17]} 23. Rec1 {[%emt 0:03:07]} Qc6 {[%emt 0:03:16]} 24. Ra3 {[%emt 0:00:52]} f6 {[%emt 0:05:58]} 25. Bg3 {[%emt 0:06:16]} Rxd4 {[%emt 0:03:54]} 26. Ra6 {[%emt 0:08:00]} Ra4 {[%emt 0:08:41]} 27. Rxb6 {[%emt 0:03:17]} Qc4 {[%emt 0:00:57]} 28. Qb5 {[%emt 0:03:09]} Ra2 {[%emt 0:07:13]} 29. Qxc4 {[%emt 0:01:59]} Rxc4 {[%emt 0:01:30]} 30. Rb4 {[%emt 0:00:15]} Kf7 {[%emt 0:05:15]} 31. Rxc4 {[%emt 0:01:34]} Bxc4 {[%emt 0:00:09]} 32. Bd6 {[%emt 0:01:13]} Rd2 {[%emt 0:04:37]} 33. Bf4 {[%emt 0:00:48]} Rb2 {[%emt 0:00:42]} 34. Bd6 {[%emt 0:02:58]} Rd2 {[%emt 0:00:09]} 35. Bf4 {[%emt 0:08:17]} Rb2 {[%emt 0:00:30]} (35... Re2 $15 {deserves consideration.}) 36. Bd6 $15 {[%emt 0:04:12]} 1/2-1/2

[Event "5th Thessaloniki SKG Open-B 2024"]
[Site "Thessaloniki"]
[Date "2024.08.07"]
[Round "2.5"]
[White "Skarlas, Vasileios"]
[Black "Hatzigrigoriou, Georgios"]
[Result "0-1"]
[ECO "B48"]
[WhiteElo "1688"]
[BlackElo "1800"]
[Annotator "NA RC"]
[PlyCount "74"]
[EventDate "2024.08.05"]
[EventType "swiss"]
[EventCountry "GRE"]
[SourceTitle "playchess.com"]
[Source "ChessBase"]
[SourceQuality "1"]
[TimeControl "40/5400+30:1800+30"]

1. e4 {[%emt 0:00:03]} c5 {[%emt 0:00:07]} 2. Nf3 {[%emt 0:00:04]} e6 {[%emt 0:00:09]} 3. d4 {[%emt 0:00:06]} cxd4 {[%emt 0:00:06]} 4. Nxd4 {[%emt 0:00:05]} Nc6 {[%emt 0:00:05]} 5. Nc3 {[%emt 0:01:35]} Qc7 {[%emt 0:00:09]} 6. Be3 {[%emt 0:01:58]} a6 {[%emt 0:00:09]} 7. a4 {[%emt 0:01:21]} Nf6 {[%emt 0:00:11]} 8. Be2 {[%emt 0:10:07]} Bb4 {[%emt 0:00:24]} 9. f3 {[%emt 0:03:04]} Ne5 {[%emt 0:09:35]} 10. Bd2 {[%emt 0:32:33]} Bc5 {[%emt 0:07:23]} 11. Nb3 {[%emt 0:01:48]} Ba7 $14 {[%emt 0:00:41]} (11... Be7 $11) 12. f4 {[%emt 0:19:28]} Ng6 {[%emt 0:08:03]} 13. e5 {[%emt 0:04:07]} Nd5 {[%emt 0:08:13]} 14. Nxd5 {[%emt 0:00:17]} exd5 {[%emt 0:00:09]} 15. Bf3 {[%emt 0:01:08]} O-O {[%emt 0:03:18]} 16. Bb4 {[%emt 0:04:16]} Re8 {[%emt 0:01:19]} 17. Bd6 {[%emt 0:02:12]} Qxd6 {[%emt 0:00:11]} 18. Bxd5 {[%emt 0:00:32]} Nxe5 {[%emt 0:00:23]} 19. Kf1 {[%emt 0:00:53]} Nc4 {[%emt 0:02:05]} 20. Bxf7+ {[%emt 0:02:18]} Kxf7 {[%emt 0:00:13]} 21. Qh5+ {[%emt 0:00:03]} Qg6 {[%emt 0:00:48]} 22. Qd5+ {[%emt 0:00:07]} Qe6 {[%emt 0:00:11]} 23. Qh5+ {[%emt 0:00:17]} Kg8 {[%emt 0:00:06]} 24. f5 {[%emt 0:00:07]} Ne3+ {[%emt 0:00:50]} 25. Ke2 {[%emt 0:00:17]} Nxf5+ {[%emt 0:00:30]} 26. Kd1 {[%emt 0:00:13]} g6 {[%emt 0:02:10]} 27. Qf3 {[%emt 0:00:10]} Qe3 {[%emt 0:00:53]} 28. Qd5+ {[%emt 0:00:06]} Kg7 {[%emt 0:00:13]} 29. g4 {[%emt 0:00:26]} Nd4 {[%emt 0:00:34]} 30. Nxd4 {[%emt 0:00:20]} Qxd4+ {[%emt 0:00:53]} 31. Qxd4+ {[%emt 0:15:59]} Bxd4 {[%emt 0:00:09]} 32. c3 {[%emt 0:00:00]} Bf6 {[%emt 0:00:36]} 33. h4 {[%emt 0:00:00]} h6 {[%emt 0:00:17]} 34. Kd2 {[%emt 0:00:00]} d5 {[%emt 0:00:12]} 35. Raf1 {[%emt 0:00:00]} Bxg4 {[%emt 0:00:11]} 36. Rhg1 {[%emt 0:00:00]} Re2+ {[%emt 0:00:40]} 37. Kd3 {[%emt 0:00:00]} Rae8 {[%emt 0:00:14]} 0-1

[Event "5th Thessaloniki SKG Open-B 2024"]
[Site "Thessaloniki"]
[Date "2024.08.07"]
[Round "2.6"]
[White "Misios, Konstantinos"]
[Black "Chalkias, Michail Panagiotis"]
[Result "0-1"]
[ECO "B30"]
[WhiteElo "1682"]
[BlackElo "1772"]
[Annotator "NA RC"]
[PlyCount "62"]
[EventDate "2024.08.05"]
[EventType "swiss"]
[EventCountry "GRE"]
[SourceTitle "playchess.com"]
[Source "ChessBase"]
[SourceQuality "1"]
[TimeControl "40/5400+30:1800+30"]

1. e4 {[%emt 0:00:03]} c5 {[%emt 0:00:11]} 2. Nf3 {[%emt 0:00:07]} Nc6 {[%emt 0:00:03]} 3. c4 {[%emt 0:00:06]} e5 {[%emt 0:00:05]} 4. Nc3 {[%emt 0:00:29]} Nge7 {[%emt 0:00:12]} 5. Be2 {[%emt 0:00:42]} g6 {[%emt 0:00:15]} 6. d3 {[%emt 0:00:21]} Bg7 {[%emt 0:00:21]} 7. O-O {[%emt 0:00:07]} O-O {[%emt 0:00:31]} 8. Be3 {[%emt 0:04:38]} d6 {[%emt 0:00:22]} 9. Qd2 {[%emt 0:05:50]} f5 {[%emt 0:00:42]} 10. exf5 {[%emt 0:09:07]} gxf5 {[%emt 0:01:06]} 11. Bh6 {[%emt 0:02:09]} f4 {[%emt 0:00:05]} 12. Bxg7 {[%emt 0:00:04]} Kxg7 {[%emt 0:00:02]} 13. Ne4 {[%emt 0:00:34]} h6 {[%emt 0:00:22]} 14. a3 {[%emt 0:01:56]} a5 {[%emt 0:00:54]} 15. Bd1 {[%emt 0:08:27]} a4 {[%emt 0:00:21]} 16. Nc3 {[%emt 0:00:18]} Bg4 {[%emt 0:02:03]} 17. Qc2 {[%emt 0:01:14]} Nf5 {[%emt 0:06:15]} 18. Nb5 {[%emt 0:11:38]} Kh8 {[%emt 0:01:49]} 19. Qc3 {[%emt 0:01:41]} Rg8 {[%emt 0:00:27]} 20. Kh1 {[%emt 0:08:07]} Rg7 {[%emt 0:09:13]} 21. h3 {[%emt 0:10:20]} Bh5 {[%emt 0:01:37]} 22. Nxe5 {[%emt 0:02:02]} Nxe5 {[%emt 0:01:00]} 23. Bxh5 {[%emt 0:00:07]} Qg5 {[%emt 0:00:11]} 24. Bg4 {[%emt 0:01:49]} Nxg4 {[%emt 0:00:56]} 25. Nc7 {[%emt 0:01:14]} Ne5 {[%emt 0:01:28]} 26. Rg1 {[%emt 0:00:55]} Rxc7 {[%emt 0:00:12]} 27. Rae1 {[%emt 0:00:05]} Rg7 {[%emt 0:00:26]} 28. b3 {[%emt 0:00:22]} axb3 {[%emt 0:00:34]} 29. Qxb3 {[%emt 0:00:05]} Rag8 {[%emt 0:00:24]} 30. Qc3 {[%emt 0:00:18]} Nd4 {[%emt 0:00:19]} 31. Qd2 {[%emt 0:00:09]} Ndf3 {[%emt 0:00:59]} 0-1

[Event "5th Thessaloniki SKG Open-B 2024"]
[Site "Thessaloniki"]
[Date "2024.08.07"]
[Round "2.7"]
[White "Seretis, Nikolaos G"]
[Black "Arzoumanidis, Alexandros"]
[Result "1-0"]
[ECO "C02"]
[WhiteElo "1675"]
[BlackElo "1763"]
[Annotator "NA RC"]
[PlyCount "63"]
[EventDate "2024.08.05"]
[EventType "swiss"]
[EventCountry "GRE"]
[SourceTitle "playchess.com"]
[Source "ChessBase"]
[SourceQuality "1"]
[TimeControl "40/5400+30:1800+30"]

1. e4 {[%emt 0:00:03]} e6 {[%emt 0:00:07]} 2. d4 {[%emt 0:00:10]} d5 {[%emt 0:00:08]} 3. e5 {[%emt 0:00:14]} c5 {[%emt 0:00:08]} 4. c3 {[%emt 0:00:07]} Nc6 {[%emt 0:00:09]} 5. Nf3 {[%emt 0:00:10]} Qb6 {[%emt 0:00:31]} 6. a3 {[%emt 0:00:18]} cxd4 {[%emt 0:04:50]} 7. cxd4 {[%emt 0:00:13]} Bd7 {[%emt 0:00:08]} 8. b4 {[%emt 0:00:29]} Rc8 {[%emt 0:06:57]} 9. Bb2 {[%emt 0:00:35]} Be7 {[%emt 0:12:11]} 10. Nc3 {[%emt 0:00:52]} f6 {[%emt 0:05:26]} 11. Na4 {[%emt 0:02:21]} Qd8 {[%emt 0:03:16]} 12. Rc1 {[%emt 0:01:26]} b6 {[%emt 0:06:19]} 13. Bd3 {[%emt 0:02:53]} Nh6 {[%emt 0:01:15]} 14. exf6 {[%emt 0:02:35]} Bxf6 {[%emt 0:01:27]} 15. O-O {[%emt 0:03:17]} O-O {[%emt 0:01:52]} 16. Bc2 {[%emt 0:02:18]} Qe7 {[%emt 0:04:36]} 17. Qd3 {[%emt 0:04:33]} g6 {[%emt 0:01:51]} 18. h3 {[%emt 0:03:31]} Rf7 {[%emt 0:00:58]} 19. Rce1 {[%emt 0:01:19]} Rcf8 {[%emt 0:01:35]} 20. Nc3 {[%emt 0:01:51]} Qd8 {[%emt 0:01:53]} 21. Ne5 {[%emt 0:02:39]} Nxe5 {[%emt 0:01:12]} 22. dxe5 {[%emt 0:00:09]} Bh4 {[%emt 0:02:49]} 23. g3 {[%emt 0:05:04]} Rf3 {[%emt 0:06:32]} 24. Re3 {[%emt 0:00:06]} Rxe3 {[%emt 0:00:22]} 25. Qxe3 {[%emt 0:00:08]} Nf5 {[%emt 0:00:15]} 26. Bxf5 {[%emt 0:00:13]} Rxf5 {[%emt 0:00:12]} 27. gxh4 {[%emt 0:00:58]} Qxh4 {[%emt 0:00:06]} 28. Ne2 {[%emt 0:01:48]} Rg5+ {[%emt 0:01:50]} 29. Ng3 {[%emt 0:00:46]} Bb5 {[%emt 0:02:15]} 30. Rc1 {[%emt 0:01:02]} h6 {[%emt 0:00:58]} 31. Rc8+ {[%emt 0:01:00]} Kg7 {[%emt 0:00:21]} 32. Qf3 {[%emt 0:00:50]} 1-0

[Event "5th Thessaloniki SKG Open-B 2024"]
[Site "Thessaloniki"]
[Date "2024.08.07"]
[Round "3.1"]
[White "Pantoglou, Dimitrios"]
[Black "Bokias, Petros"]
[Result "1-0"]
[ECO "D43"]
[WhiteElo "1893"]
[BlackElo "1709"]
[Annotator "NA RC"]
[PlyCount "79"]
[EventDate "2024.08.05"]
[EventType "swiss"]
[EventCountry "GRE"]
[SourceTitle "playchess.com"]
[Source "ChessBase"]
[SourceQuality "1"]
[TimeControl "40/5400+30:1800+30"]

1. d4 {[%emt 0:02:41]} d5 {[%emt 0:00:07]} 2. c4 {[%emt 0:00:08]} c6 {[%emt 0:00:04]} 3. Nc3 {[%emt 0:01:22]} Nf6 {[%emt 0:00:04]} 4. Nf3 {[%emt 0:01:28]} e6 {[%emt 0:00:11]} 5. Bg5 {[%emt 0:00:11]} h6 {[%emt 0:00:28]} 6. Bxf6 {[%emt 0:00:43]} Qxf6 {[%emt 0:01:20]} 7. e3 {[%emt 0:00:13]} Nd7 {[%emt 0:01:15]} 8. Qc2 {[%emt 0:00:51]} Be7 {[%emt 0:06:10]} 9. O-O-O {[%emt 0:02:15]} h5 {[%emt 0:04:35]} 10. e4 {[%emt 0:00:52]} Nb6 {[%emt 0:11:45]} 11. cxd5 {[%emt 0:10:55]} exd5 {[%emt 0:01:03]} 12. exd5 {[%emt 0:00:24]} Nxd5 {[%emt 0:07:08]} 13. Nxd5 {[%emt 0:00:30]} cxd5 {[%emt 0:00:03]} 14. Bb5+ {[%emt 0:00:42]} Kf8 {[%emt 0:00:11]} 15. Kb1 {[%emt 0:02:20]} g6 {[%emt 0:12:13]} 16. Rhe1 {[%emt 0:04:32]} Kg7 {[%emt 0:04:03]} 17. Qe2 {[%emt 0:12:22]} Bb4 {[%emt 0:03:05]} 18. Rf1 {[%emt 0:00:54]} Bg4 {[%emt 0:00:23]} 19. Qe5 {[%emt 0:03:30]} Bxf3 {[%emt 0:06:32]} 20. gxf3 {[%emt 0:00:34]} Qxe5 {[%emt 0:00:25]} 21. dxe5 {[%emt 0:00:03]} Rad8 {[%emt 0:00:22]} 22. f4 {[%emt 0:03:15]} Bc5 {[%emt 0:07:16]} 23. Kc2 {[%emt 0:03:01]} h4 {[%emt 0:01:24]} 24. h3 {[%emt 0:12:04]} Bb6 {[%emt 0:07:42]} 25. Be2 {[%emt 0:07:01]} Rhe8 {[%emt 0:01:05]} 26. Bb5 {[%emt 0:20:03]} Re7 {[%emt 0:00:15]} 27. Kd3 {[%emt 0:00:41]} Rc7 {[%emt 0:06:51]} 28. Ke2 {[%emt 0:02:41]} Rc2+ {[%emt 0:01:21]} 29. Rd2 {[%emt 0:00:26]} Rxd2+ {[%emt 0:00:04]} 30. Kxd2 {[%emt 0:00:29]} Kf8 {[%emt 0:00:35]} 31. Bd3 {[%emt 0:02:44]} Bd4 {[%emt 0:02:49]} 32. b3 {[%emt 0:01:39]} Ke7 {[%emt 0:00:39]} 33. f3 {[%emt 0:02:20]} Ke6 {[%emt 0:01:04]} 34. Rc1 {[%emt 0:01:28]} Rd7 {[%emt 0:03:51]} 35. Rc8 {[%emt 0:01:26]} Re7 {[%emt 0:02:45]} 36. b4 {[%emt 0:00:50]} Bg1 {[%emt 0:06:08]} 37. Rd8 {[%emt 0:00:23]} Rd7 {[%emt 0:02:27]} 38. Re8+ {[%emt 0:00:12]} Re7 {[%emt 0:00:04]} 39. f5+ {[%emt 0:00:00]} Kd7 {[%emt 0:00:00]} 40. Bb5+ {[%emt 0:00:00]} 1-0